bitfinex/quotes_BTCUSD_20250110
["timestamp","ask_amount","ask_price","bid_price","bid_amount"]
[1736488989324,0.15,94167.0,94163.0,0.00401875]
[1736488989536,0.21239,94166.0,94162.0,9.366e-05]
[1736488989942,0.424781,94166.0,94162.0,9.366e-05]
[1736488990143,0.212395,94164.0,94162.0,9.366e-05]
[1736488990548,0.212395,94164.0,94162.0,0.00109366]
[1736488990821,0.212395,94164.0,94162.0,0.00509366]
[1736488991039,0.212395,94164.0,94162.0,0.00409366]
[1736488991264,0.212395,94164.0,94162.0,9.366e-05]
[1736488991457,0.01804063,94163.0,94162.0,0.00509366]
[1736488991915,0.01804063,94163.0,94162.0,9.366e-05]
[1736488992120,0.01804063,94163.0,94162.0,0.00409366]
[1736488992337,0.01804063,94163.0,94162.0,0.00109366]
[1736488993024,0.16804063,94163.0,94162.0,0.00109366]
[1736488993531,0.16804063,94163.0,94162.0,9.366e-05]
[1736488993996,0.16804063,94163.0,94162.0,0.00509366]
[1736488994211,0.16804063,94163.0,94162.0,0.00109366]
[1736488994651,0.16804063,94163.0,94162.0,9.366e-05]
[1736488995127,0.15,94163.0,94162.0,9.366e-05]
[1736488996293,0.16530104,94163.0,94162.0,9.366e-05]
[1736488997398,0.16630104,94163.0,94162.0,9.366e-05]
[1736488998592,0.16530104,94163.0,94162.0,9.366e-05]
[1736488998795,0.16630104,94163.0,94162.0,9.366e-05]
[1736488999012,0.24610104,94163.0,94162.0,9.366e-05]
[1736488999239,0.24510104,94163.0,94162.0,9.366e-05]
[1736488999463,0.16530104,94163.0,94162.0,9.366e-05]
[1736489000836,0.16630104,94163.0,94162.0,9.366e-05]
[1736489007888,0.16530104,94163.0,94162.0,9.366e-05]
[1736489008345,0.16630104,94163.0,94162.0,9.366e-05]
[1736489009872,0.16530104,94163.0,94162.0,9.366e-05]
[1736489010104,0.24290104,94163.0,94162.0,9.366e-05]
[1736489010283,0.24390104,94163.0,94162.0,9.366e-05]
[1736489010411,0.16630104,94163.0,94162.0,9.366e-05]
[1736489010635,0.16530104,94163.0,94162.0,9.366e-05]
[1736489011063,0.16630104,94163.0,94162.0,9.366e-05]
[1736489011514,0.16530104,94163.0,94162.0,9.366e-05]
[1736489011808,0.16630104,94163.0,94162.0,9.366e-05]
[1736489013159,0.16530104,94163.0,94162.0,9.366e-05]
[1736489013405,0.16630104,94163.0,94162.0,9.366e-05]
[1736489014073,0.16530104,94163.0,94162.0,9.366e-05]
[1736489014322,0.16530104,94163.0,94162.0,0.00109366]
[1736489017538,0.16530104,94163.0,94162.0,9.366e-05]
[1736489017715,0.16530104,94163.0,94162.0,0.00109366]
[1736489022651,0.24160104,94163.0,94162.0,9.366e-05]
[1736489023908,0.24060104,94163.0,94162.0,9.366e-05]
[1736489024123,0.31711977,94163.0,94162.0,9.366e-05]
[1736489024333,0.24160104,94163.0,94162.0,9.366e-05]
[1736489025417,0.69682104,94163.0,94162.0,9.366e-05]
[1736489025615,0.69729917,94163.0,94162.0,9.366e-05]
[1736489025843,0.69670253,94163.0,94162.0,9.366e-05]
[1736489026500,0.424826,94156.0,94132.0,0.0458]
[1736489026709,0.212465,94133.0,94132.0,0.04628875]
[1736489026913,0.212465,94133.0,94132.0,0.05043941]
[1736489027127,0.2337115,94133.0,94132.0,0.05043941]
[1736489027332,0.212465,94133.0,94132.0,0.05043941]
[1736489027750,0.212465,94133.0,94132.0,0.04628875]
[1736489027959,0.212461,94135.0,94132.0,0.04728875]
[1736489028611,0.212461,94135.0,94132.0,0.05228875]
[1736489028813,0.212461,94135.0,94132.0,0.05128875]
[1736489029027,0.212461,94135.0,94132.0,0.04628875]
[1736489029230,0.212461,94135.0,94132.0,0.05028875]
[1736489029430,0.212465,94133.0,94132.0,0.05028875]
[1736489029866,0.212465,94133.0,94132.0,0.00448875]
[1736489030291,0.212465,94133.0,94132.0,0.00548875]
[1736489031350,0.212465,94133.0,94132.0,0.00048875]
[1736489031525,0.212465,94133.0,94132.0,0.00148875]
[1736489031729,0.23865496,94133.0,94132.0,0.00748875]
[1736489032554,0.38865496,94133.0,94132.0,0.00748875]
[1736489034391,0.16440803,94133.0,94132.0,0.00748875]
[1736489034802,0.37687303,94133.0,94132.0,0.00748875]
[1736489039545,0.37687303,94133.0,94132.0,0.00148875]
[1736489039746,0.37687303,94133.0,94132.0,0.00048875]
[1736489040363,0.45767303,94133.0,94132.0,0.00048875]
[1736489040973,0.37687303,94133.0,94132.0,0.00048875]
[1736489041391,0.37687303,94133.0,94132.0,0.00148875]
[1736489041703,0.37687303,94133.0,94132.0,0.00048875]
[1736489042144,1.30677903,94133.0,94132.0,0.00148875]
[1736489042366,1.30725745,94133.0,94132.0,0.00148875]
[1736489042579,1.23131345,94133.0,94132.0,0.00148875]
[1736489042791,1.21594945,94133.0,94132.0,0.00148875]
[1736489043235,1.21635283,94133.0,94132.0,0.00048875]
[1736489044131,1.21735283,94133.0,94132.0,0.00048875]
[1736489044354,1.31735283,94133.0,94132.0,0.00048875]
[1736489044568,1.36465283,94133.0,94132.0,0.00048875]
[1736489045031,1.36665283,94133.0,94132.0,0.00048875]
[1736489045555,1.36665283,94133.0,94125.0,8.52e-05]
[1736489045556,0.544381,94126.0,94125.0,8.52e-05]
[1736489045783,1.356204,94126.0,94125.0,8.52e-05]
[1736489046026,1.67015938,94126.0,94125.0,8.52e-05]
[1736489046371,1.40004938,94126.0,94125.0,8.52e-05]
[1736489046780,1.26468538,94126.0,94125.0,8.52e-05]
[1736489047420,0.832056,94126.0,94125.0,8.52e-05]
[1736489048314,0.838056,94126.0,94125.0,8.52e-05]
[1736489048931,0.85889833,94126.0,94125.0,8.52e-05]
[1736489049817,0.85930171,94126.0,94125.0,8.52e-05]
[1736489050083,0.362528,94105.0,94100.0,8.52e-05]
[1736489051148,0.362528,94105.0,94104.0,0.00437763]
[1736489051381,0.362528,94105.0,94104.0,8.52e-05]
[1736489051614,0.362528,94105.0,94104.0,0.0010852]
[1736489052061,0.362528,94105.0,94104.0,0.0050852]
[1736489052815,0.36293138,94105.0,94104.0,0.0050852]
[1736489054293,0.46501833,94105.0,94104.0,0.0050852]
[1736489054958,0.47859928,94105.0,94104.0,0.0050852]
[1736489055338,0.86632028,94105.0,94104.0,0.0050852]
[1736489056370,0.47859928,94105.0,94104.0,0.0050852]
[1736489056570,0.4781959,94105.0,94104.0,0.0040852]
[1736489056780,0.3969959,94105.0,94104.0,0.0040852]
[1736489057822,0.3969959,94105.0,94104.0,8.52e-05]
[1736489058179,0.3969959,94105.0,94104.0,0.0010852]
[1736489059603,0.37610895,94105.0,94104.0,0.0470852]
[1736489060942,0.37610895,94105.0,94104.0,0.0460852]
[1736489061153,0.37610895,94105.0,94104.0,0.05044597]
[1736489061366,0.37610895,94105.0,94104.0,0.05144597]
[1736489061577,0.43497145,94105.0,94104.0,0.05144597]
[1736489061759,0.43497145,94105.0,94104.0,0.12894597]
[1736489061999,0.37610895,94105.0,94104.0,0.1285852]
[1736489062224,0.37610895,94105.0,94104.0,0.1245852]
[1736489062437,0.15,94105.0,94104.0,0.12894597]
[1736489062646,0.15,94105.0,94104.0,0.13394597]
[1736489062822,0.15,94105.0,94104.0,0.12894597]
[1736489063444,0.15,94105.0,94104.0,0.12794597]
[1736489063862,0.15,94105.0,94104.0,0.12994597]
[1736489064083,0.212488,94123.0,94105.0,0.0781]
[1736489064297,0.212488,94123.0,94104.0,0.15674573]
[1736489064298,0.212481,94126.0,94108.0,0.0491]
[1736489064548,0.212481,94126.0,94111.0,0.290615]
[1736489064776,0.212481,94126.0,94112.0,0.18239976]
[1736489064992,0.15,94125.0,94112.0,0.18672549]
[1736489065207,0.2074951,94125.0,94113.0,0.0491]
[1736489065428,0.2074951,94125.0,94114.0,0.10429976]
[1736489065636,0.15,94123.0,94114.0,0.10862417]
[1736489066637,0.212478,94128.0,94114.0,0.10862417]
[1736489066638,0.15,94127.0,94114.0,0.10862417]
[1736489067475,0.15,94123.0,94114.0,0.10862417]
[1736489067871,0.15,94123.0,94114.0,0.11162417]
[1736489068081,0.15,94123.0,94114.0,0.10862417]
[1736489068487,0.15,94123.0,94114.0,0.11162417]
[1736489068687,0.22587615,94128.0,94114.0,0.10962417]
[1736489069126,0.22587615,94128.0,94115.0,0.0791]
[1736489069321,0.22587615,94128.0,94116.0,0.10429976]
[1736489069520,0.22587615,94128.0,94116.0,0.10862285]
[1736489069521,0.15,94127.0,94116.0,0.10862285]
[1736489070323,0.15,94125.0,94116.0,0.10862285]
[1736489071365,0.22587615,94128.0,94116.0,0.11062285]
[1736489071566,0.22587615,94128.0,94116.0,0.11162285]
[1736489071746,0.15,94127.0,94116.0,0.10962285]
[1736489071915,0.15,94127.0,94116.0,0.11262285]
[1736489072360,0.05888337,94126.0,94116.0,0.10962285]
[1736489072922,0.15,94127.0,94116.0,0.10962285]
[1736489073086,0.212483,94125.0,94116.0,0.10862285]
[1736489073293,0.15,94124.0,94116.0,0.10862285]
[1736489073519,0.15,94122.0,94116.0,0.10962285]
[1736489073930,0.15,94122.0,94116.0,0.11162285]
[1736489074097,0.15,94122.0,94116.0,0.11062285]
[1736489074324,0.27132882,94121.0,94116.0,0.10862285]
[1736489074520,0.27132882,94121.0,94116.0,0.11362285]
[1736489074922,0.27132882,94121.0,94116.0,0.10862285]
[1736489075133,0.15,94124.0,94116.0,0.11362285]
[1736489075502,0.15,94124.0,94116.0,0.10862285]
[1736489076006,0.15,94124.0,94116.0,0.11362285]
[1736489076384,0.15,94124.0,94116.0,0.11462285]
[1736489076587,0.212492,94121.0,94116.0,0.11462285]
[1736489076922,0.212492,94121.0,94116.0,0.11362285]
[1736489077123,0.212492,94121.0,94116.0,0.11462285]
[1736489077556,0.15,94122.0,94116.0,0.10962285]
[1736489077737,0.01339815,94128.0,94116.0,0.10862285]
[1736489077890,0.01339815,94128.0,94116.0,0.11262285]
[1736489078087,0.212483,94125.0,94116.0,0.11262285]
[1736489078295,0.15,94122.0,94116.0,0.10862285]
[1736489078501,0.15,94122.0,94116.0,0.11562285]
[1736489078902,0.212483,94125.0,94116.0,0.11062285]
[1736489079110,0.212483,94125.0,94116.0,0.11162285]
[1736489079581,0.212487,94123.0,94116.0,0.11062285]
[1736489079754,0.15,94124.0,94116.0,0.10862285]
[1736489079986,0.212487,94123.0,94116.0,0.10862285]
[1736489080199,0.212487,94123.0,94116.0,0.10962285]
[1736489080620,0.212487,94123.0,94116.0,0.10862285]
[1736489081051,0.212487,94123.0,94116.0,0.11362285]
[1736489081471,0.212487,94123.0,94116.0,0.10862285]
[1736489081676,0.057497,94122.0,94116.0,0.11262285]
[1736489081830,0.057497,94122.0,94116.0,0.11362285]
[1736489082041,0.212487,94123.0,94116.0,0.11362285]
[1736489082446,0.212487,94123.0,94116.0,0.10962285]
[1736489082858,0.212487,94123.0,94116.0,0.11362285]
[1736489083108,0.212487,94123.0,94116.0,0.11262285]
[1736489083254,0.212487,94123.0,94116.0,0.11362285]
[1736489083691,0.15,94124.0,94116.0,0.11362285]
[1736489083982,0.15,94128.0,94116.0,0.11262285]
[1736489084195,0.212476,94129.0,94116.0,0.10962285]
[1736489084196,0.212478,94127.0,94116.0,0.10962285]
[1736489084363,0.212476,94129.0,94116.0,0.11362285]
[1736489084568,0.212476,94129.0,94116.0,0.11262285]
[1736489084767,0.212476,94129.0,94116.0,0.10862285]
[1736489084977,0.15,94126.0,94116.0,0.11262285]
[1736489085171,0.15,94124.0,94116.0,0.11262285]
[1736489085867,0.15,94124.0,94116.0,0.10962285]
[1736489086119,0.15,94124.0,94116.0,0.10862285]
[1736489086354,0.212476,94129.0,94116.0,0.10862285]
[1736489087445,0.15,94126.0,94116.0,0.11062285]
[1736489087848,0.15,94126.0,94116.0,0.10962285]
[1736489088571,0.15,94126.0,94116.0,0.10862285]
[1736489088983,0.15,94126.0,94116.0,0.11062285]
[1736489089189,0.15,94128.0,94116.0,0.11062285]
[1736489090346,0.15,94128.0,94116.0,0.11162285]
[1736489090548,0.15,94128.0,94116.0,0.10962285]
[1736489091070,0.20881861,94128.0,94116.0,0.10962285]
[1736489092111,0.15,94128.0,94116.0,0.10962285]
[1736489092322,0.01275658,94131.0,94116.0,0.10962285]
[1736489092593,0.15,94132.0,94116.0,0.10962285]
[1736489092810,0.00048854,94133.0,94116.0,0.10962285]
[1736489092971,0.15,94128.0,94116.0,0.10962285]
[1736489093811,0.15,94128.0,94116.0,0.10862285]
[1736489094879,0.15,94128.0,94116.0,0.10962285]
[1736489095089,0.05881923,94127.0,94116.0,0.10962285]
[1736489095501,0.15,94125.0,94116.0,0.10962285]
[1736489096652,0.05881923,94127.0,94116.0,0.00532309]
[1736489096873,0.2125,94118.0,94116.0,0.00532309]
[1736489097086,0.2125,94118.0,94116.0,0.001]
[1736489097514,0.425006,94116.0,94104.0,0.0486852]
[1736489097728,0.15,94117.0,94116.0,0.001]
[1736489097946,0.15,94117.0,94116.0,0.003]
[1736489098155,0.425006,94116.0,94104.0,0.0486852]
[1736489098376,0.289803,94116.0,94104.0,0.0486852]
[1736489098599,0.15,94113.0,94108.0,0.00429764]
[1736489098870,0.212528,94105.0,94104.0,8.52e-05]
[1736489099085,0.23054783,94105.0,94104.0,8.52e-05]
[1736489099528,0.212528,94105.0,94104.0,8.52e-05]
[1736489100173,0.362528,94105.0,94104.0,8.52e-05]
[1736489100389,0.362528,94105.0,94104.0,0.0010852]
[1736489100795,0.15,94105.0,94104.0,8.52e-05]
[1736489101292,0.15,94105.0,94104.0,0.0010852]
[1736489101514,0.15,94105.0,94104.0,0.0050852]
[1736489101738,0.2648512,94105.0,94104.0,0.0050852]
[1736489101975,0.15,94105.0,94104.0,0.0010852]
[1736489102191,0.15,94105.0,94104.0,0.0050852]
[1736489102641,0.15,94105.0,94104.0,0.00541393]
[1736489102855,0.14688066,94105.0,94104.0,8.52e-05]
[1736489103001,0.14688066,94105.0,94104.0,0.0010852]
[1736489103406,0.14688066,94105.0,94104.0,8.52e-05]
[1736489103606,0.14688066,94105.0,94104.0,0.00441393]
[1736489103840,0.14688066,94105.0,94104.0,0.00541393]
[1736489104091,0.14688066,94105.0,94104.0,0.00941393]
[1736489104223,0.14688066,94105.0,94104.0,0.00541393]
[1736489104428,0.14688066,94105.0,94104.0,0.00441393]
[1736489104649,0.14688066,94105.0,94104.0,0.01041393]
[1736489104851,0.14688066,94105.0,94104.0,0.0060852]
[1736489105311,0.14688066,94105.0,94104.0,0.0010852]
[1736489105836,0.14688066,94105.0,94104.0,0.0060852]
[1736489106047,0.14688066,94105.0,94104.0,0.0050852]
[1736489106281,0.424996,94119.0,94104.0,0.0060852]
[1736489106487,0.212511,94113.0,94104.0,0.0060852]
[1736489106698,0.212511,94113.0,94104.0,0.0050852]
[1736489106903,0.15,94118.0,94104.0,0.0050852]
[1736489107117,0.212501,94117.0,94104.0,0.0010852]
[1736489107319,0.02158909,94116.0,94104.0,0.0010852]
[1736489107590,0.22532345,94119.0,94105.0,0.10429976]
[1736489107802,0.15,94118.0,94106.0,0.0818]
[1736489108008,0.15,94116.0,94106.0,0.19042717]
[1736489108708,0.1452,94116.0,94106.0,0.19042717]
[1736489108946,0.212505,94115.0,94106.0,0.19042717]
[1736489110586,0.212505,94115.0,94106.0,0.19142717]
[1736489110766,0.01282545,94119.0,94106.0,0.19442717]
[1736489110911,0.15,94110.0,94106.0,0.19142717]
[1736489111131,0.15,94110.0,94106.0,0.19042717]
[1736489111391,0.15,94110.0,94106.0,0.19442717]
[1736489111567,0.15,94110.0,94106.0,0.19042717]
[1736489112033,0.15,94110.0,94106.0,0.19242717]
[1736489112245,0.212519,94109.0,94106.0,0.19042717]
[1736489112457,0.212524,94107.0,94106.0,0.00432741]
[1736489112672,0.362524,94107.0,94106.0,0.00532741]
[1736489112973,0.38505555,94107.0,94106.0,0.001]
[1736489113218,0.362528,94105.0,94104.0,8.52e-05]
[1736489113608,0.362528,94105.0,94104.0,0.00441944]
[1736489113809,0.362528,94105.0,94104.0,8.52e-05]
[1736489114072,0.362528,94105.0,94104.0,0.00441944]
[1736489114249,0.362528,94105.0,94104.0,8.52e-05]
[1736489114427,0.362528,94105.0,94104.0,0.00441944]
[1736489114812,0.362528,94105.0,94104.0,0.00741944]
[1736489115249,0.362528,94105.0,94104.0,0.00441944]
[1736489117321,0.362528,94105.0,94104.0,8.52e-05]
[1736489124677,0.362528,94105.0,94104.0,0.0020852]
[1736489127579,0.362528,94105.0,94104.0,8.52e-05]
[1736489127755,0.362528,94105.0,94104.0,0.0020852]
[1736489129898,0.15,94105.0,94104.0,0.0020852]
[1736489133047,0.15,94105.0,94104.0,8.52e-05]
[1736489133529,0.15,94105.0,94104.0,0.0020852]
[1736489133738,0.15,94105.0,94104.0,8.52e-05]
[1736489135045,0.15,94105.0,94104.0,0.0010852]
[1736489135388,0.15,94105.0,94104.0,8.52e-05]
[1736489135960,0.15,94105.0,94104.0,0.0020852]
[1736489136144,0.15,94105.0,94104.0,8.52e-05]
[1736489136544,0.15,94105.0,94104.0,0.0020852]
[1736489136757,0.15,94105.0,94104.0,0.0030852]
[1736489141042,0.01243187,94110.0,94104.0,0.0030852]
[1736489141249,0.212506,94115.0,94104.0,0.0030852]
[1736489141449,0.212506,94115.0,94105.0,0.0797]
[1736489141803,0.15,94114.0,94106.0,0.00346341]
[1736489142016,0.212478,94128.0,94107.0,0.10429976]
[1736489142229,0.212478,94128.0,94108.0,0.0462]
[1736489142435,0.22492698,94128.0,94110.0,0.0797]
[1736489142643,0.15,94127.0,94111.0,0.10429976]
[1736489142879,0.290112,94112.0,94111.0,0.00346218]
[1736489143233,0.21029788,94110.0,94106.0,0.001]
[1736489143645,0.212521,94108.0,94106.0,0.001]
[1736489144686,0.212521,94108.0,94088.0,0.0797]
[1736489144687,0.425045,94108.0,94088.0,0.0797]
[1736489145659,0.426045,94108.0,94088.0,0.0797]
[1736489146153,0.425045,94108.0,94088.0,0.0797]
[1736489146539,0.426045,94108.0,94088.0,0.0797]
[1736489150771,0.15,94105.0,94088.0,0.0797]
[1736489152032,0.15,94105.0,94087.0,8.53e-05]
[1736489152033,0.591136,94105.0,94087.0,8.53e-05]
[1736489152242,0.56463715,94105.0,94087.0,8.53e-05]
[1736489152455,0.52340415,94105.0,94087.0,8.53e-05]
[1736489153595,0.52340415,94105.0,94104.0,0.0010852]
[1736489153943,0.52340415,94105.0,94104.0,8.52e-05]
[1736489154346,0.52340415,94105.0,94104.0,0.0010852]
[1736489155141,0.52640415,94105.0,94104.0,0.0010852]
[1736489155360,0.52640415,94105.0,94100.0,4.521e-05]
[1736489155361,0.1,94101.0,94100.0,4.521e-05]
[1736489155547,1.382034,94101.0,94100.0,4.521e-05]
[1736489155795,1.12970714,94101.0,94100.0,4.521e-05]
[1736489156215,1.30560714,94101.0,94100.0,4.521e-05]
[1736489156427,0.438451,94095.0,94087.0,8.53e-05]
[1736489156640,1.32232,94095.0,94087.0,8.53e-05]
[1736489156864,1.32360295,94095.0,94087.0,8.53e-05]
[1736489157493,0.15,94094.0,94087.0,8.53e-05]
[1736489157699,0.362566,94088.0,94087.0,8.53e-05]
[1736489159728,0.38348701,94088.0,94087.0,8.53e-05]
[1736489160544,0.15,94088.0,94087.0,0.0465853]
[1736489160757,0.00048824,94095.0,94088.0,0.075]
[1736489161182,0.00048824,94095.0,94089.0,0.00319428]
[1736489161538,0.00048824,94095.0,94090.0,0.31686076]
[1736489161762,0.00048824,94095.0,94092.0,0.212557]
[1736489162046,0.00048824,94095.0,94094.0,0.1224]
[1736489162263,0.00048824,94095.0,94094.0,0.22669976]
[1736489162483,0.00048824,94095.0,94094.0,0.22988639]
[1736489162700,0.00048824,94095.0,94094.0,0.25288639]
[1736489162922,0.00048824,94095.0,94094.0,0.26048639]
[1736489163180,0.00048824,94095.0,94094.0,0.57334229]
[1736489163595,0.212474,94130.0,94110.0,0.1224]
[1736489163815,0.22446418,94130.0,94112.0,0.212512]
[1736489164023,0.22446418,94130.0,94111.0,0.10429976]
[1736489164024,0.212448,94141.0,94113.0,0.10429976]
[1736489164226,0.212475,94129.0,94113.0,0.10429976]
[1736489164629,0.212475,94129.0,94113.0,0.14864559]
[1736489164830,0.212478,94127.0,94113.0,0.15181914]
[1736489165284,0.212463,94134.0,94114.0,0.00106244]
[1736489165459,0.212464,94134.0,94115.0,0.10429976]
[1736489165683,0.424928,94134.0,94115.0,0.10852718]
[1736489166906,0.15,94133.0,94116.0,0.023]
[1736489167139,0.15,94131.0,94118.0,0.023]
[1736489167283,0.15,94131.0,94119.0,0.10429976]
[1736489167483,0.15,94131.0,94120.0,0.00315999]
[1736489167681,0.15,94131.0,94121.0,0.10429976]
[1736489167888,0.15,94131.0,94122.0,0.00315945]
[1736489168097,0.15,94131.0,94123.0,0.10429976]
[1736489168300,0.15,94131.0,94124.0,0.0031301]
[1736489168528,0.15,94131.0,94125.0,0.10429976]
[1736489169394,0.15,94131.0,94125.0,0.1043935]
[1736489169794,0.15,94131.0,94125.0,0.1063935]
[1736489170809,0.15,94131.0,94125.0,0.1073935]
[1736489172703,0.16187815,94133.0,94125.0,0.1073935]
[1736489172905,0.15,94133.0,94126.0,0.00312908]
[1736489173248,0.15,94133.0,94125.0,0.1073935]
[1736489173657,0.15,94133.0,94125.0,0.1063935]
[1736489174063,0.212449,94140.0,94126.0,0.00312908]
[1736489174274,0.212449,94140.0,94127.0,0.10429976]
[1736489174470,0.15,94137.0,94127.0,0.10429976]
[1736489174676,0.15,94137.0,94128.0,0.00312855]
[1736489174882,0.15,94137.0,94129.0,0.10429976]
[1736489175288,0.15,94135.0,94130.0,0.00312801]
[1736489175702,0.15,94135.0,94129.0,0.10429976]
[1736489176688,0.15,94133.0,94130.0,0.003]
[1736489176889,0.15,94133.0,94129.0,0.10429976]
[1736489177801,0.15,94133.0,94129.0,0.10529976]
[1736489178204,0.15,94133.0,94129.0,0.10429976]
[1736489178430,0.15,94133.0,94129.0,0.10729976]
[1736489178638,0.15,94133.0,94129.0,0.10529976]
[1736489179148,0.15,94133.0,94129.0,0.10929976]
[1736489179362,0.15,94131.0,94129.0,0.005]
[1736489179561,0.362472,94130.0,94129.0,0.005]
[1736489179741,0.36294804,94130.0,94129.0,0.005]
[1736489179941,0.42048954,94130.0,94129.0,0.004]
[1736489180714,0.36294804,94130.0,94129.0,0.004]
[1736489180888,0.36294804,94130.0,94129.0,0.005]
[1736489181336,0.36294804,94130.0,94129.0,0.004]
[1736489181543,0.212476,94128.0,94125.0,9.374e-05]
[1736489183012,0.212476,94128.0,94125.0,0.00209374]
[1736489183417,0.212481,94126.0,94125.0,0.00209374]
[1736489183633,0.362481,94126.0,94125.0,0.00309374]
[1736489183846,0.15,94126.0,94125.0,0.00309374]
[1736489184407,0.15,94126.0,94125.0,0.00209374]
[1736489184609,0.15,94130.0,94125.0,9.374e-05]
[1736489184813,0.15,94130.0,94125.0,0.00109374]
[1736489184991,0.15,94130.0,94125.0,0.00409374]
[1736489185192,0.15,94130.0,94125.0,0.00109374]
[1736489185737,0.01199576,94132.0,94125.0,0.00509374]
[1736489185981,0.15,94133.0,94125.0,0.00109374]
[1736489186158,0.15,94133.0,94125.0,0.00309374]
[1736489186560,0.15,94133.0,94125.0,0.00209374]
[1736489187338,0.15,94136.0,94125.0,0.00309374]
[1736489187763,0.16152261,94136.0,94125.0,9.374e-05]
[1736489187968,0.16152261,94136.0,94126.0,0.18589976]
[1736489188171,0.16152261,94136.0,94127.0,0.0474]
[1736489188546,0.01152261,94136.0,94128.0,0.10429976]
[1736489188943,0.15,94144.0,94128.0,0.10742407]
[1736489189076,0.15,94142.0,94128.0,0.10742407]
[1736489189279,0.15,94140.0,94128.0,0.10742407]
[1736489189701,0.15,94140.0,94128.0,0.10429976]
[1736489189899,0.001,94136.0,94129.0,0.00312404]
[1736489190508,0.15,94140.0,94129.0,0.00312404]
[1736489191250,0.15,94142.0,94129.0,0.00312404]
[1736489191442,0.15,94142.0,94129.0,0.00712404]
[1736489191666,0.15,94142.0,94129.0,0.00812404]
[1736489191983,0.15,94142.0,94129.0,0.00412404]
[1736489192234,0.15,94142.0,94129.0,0.00612404]
[1736489192442,0.15,94145.0,94130.0,0.10429976]
[1736489192662,0.15,94145.0,94130.0,0.105362]
[1736489192845,0.15,94145.0,94131.0,0.00312093]
[1736489193112,0.15,94145.0,94132.0,0.10429976]
[1736489193435,0.01168684,94146.0,94133.0,0.00312039]
[1736489193653,0.1501706,94148.0,94134.0,0.10429976]
[1736489194293,0.1501706,94148.0,94137.0,0.0488]
[1736489194493,0.0001706,94148.0,94139.0,0.023]
[1736489194696,0.0001706,94148.0,94141.0,0.023]
[1736489194856,0.0001706,94148.0,94143.0,0.023]
[1736489195056,0.0001706,94148.0,94146.0,0.0797]
[1736489195259,0.0001706,94148.0,94147.0,0.10429976]
[1736489195468,0.0001706,94148.0,94147.0,0.10740886]
[1736489197370,0.0001706,94148.0,94147.0,0.10940886]
[1736489198687,0.0001706,94148.0,94147.0,0.11540886]
[1736489199546,0.0001706,94148.0,94147.0,0.1164709]
[1736489200107,0.0001706,94148.0,94147.0,0.1394709]
[1736489200324,0.0001706,94148.0,94147.0,0.1872709]
[1736489200819,0.0001706,94148.0,94147.0,0.24200973]
[1736489201106,0.0001706,94148.0,94147.0,0.31784769]
[1736489201308,0.0001706,94148.0,94147.0,0.25510886]
[1736489201511,0.0001706,94148.0,94147.0,0.25710886]
[1736489201683,0.0001706,94148.0,94147.0,0.26610886]
[1736489201900,0.0001706,94148.0,94147.0,0.25710886]
[1736489202314,0.0001706,94148.0,94147.0,0.57616672]
[1736489202453,0.0001706,94148.0,94147.0,0.68046648]
[1736489202881,0.0001706,94148.0,94147.0,0.57416672]
[1736489203303,0.0001706,94148.0,94147.0,0.57916672]
[1736489207515,0.0001706,94148.0,94147.0,0.67916672]
[1736489211715,0.0001706,94148.0,94147.0,0.57916672]
[1736489218309,0.0001706,94148.0,94147.0,0.27670886]
[1736489220790,0.0001706,94148.0,94147.0,0.12140886]
[1736489221367,0.00840178,94148.0,94147.0,0.12140886]
[1736489222817,0.0001706,94148.0,94147.0,0.12140886]
[1736489228583,0.0001706,94148.0,94147.0,0.0171091]
[1736489229826,0.0001706,94148.0,94147.0,0.009]
[1736489230022,0.0001706,94148.0,94147.0,0.011]
[1736489230429,0.0001706,94148.0,94147.0,0.009]
[1736489230753,0.0001706,94148.0,94147.0,0.002]
[1736489230954,0.0001706,94148.0,94147.0,0.01]
[1736489231385,0.0001706,94148.0,94147.0,0.002]
[1736489231634,0.0001706,94148.0,94147.0,0.01]
[1736489232179,0.0001706,94148.0,94147.0,0.008]
[1736489232393,0.0001706,94148.0,94147.0,0.01]
[1736489232994,0.0001706,94148.0,94147.0,0.008]
[1736489233404,0.04583309,94148.0,94147.0,0.01]
[1736489233804,0.0001706,94148.0,94147.0,0.01]
[1736489234491,0.0001706,94148.0,94147.0,0.10629976]
[1736489234700,0.0001706,94148.0,94147.0,0.10944656]
[1736489234877,0.0001706,94148.0,94147.0,0.11744656]
[1736489235083,0.0001706,94148.0,94147.0,0.10944656]
[1736489235290,0.0001706,94148.0,94147.0,0.13150865]
[1736489235515,0.0001706,94148.0,94147.0,0.13850861]
[1736489235724,0.0001706,94148.0,94147.0,0.21680861]
[1736489235926,0.0001706,94148.0,94147.0,0.45564656]
[1736489236150,0.0001706,94148.0,94147.0,0.45364656]
[1736489236441,0.0001706,94148.0,94147.0,0.54836788]
[1736489236973,0.0001706,94148.0,94147.0,0.54436788]
[1736489237180,0.0001706,94148.0,94147.0,0.55036788]
[1736489237590,0.0001706,94148.0,94147.0,0.55936788]
[1736489237796,0.0001706,94148.0,94147.0,0.55036788]
[1736489238209,0.0001706,94148.0,94147.0,0.55936788]
[1736489238405,0.0001706,94148.0,94147.0,0.46864656]
[1736489238619,0.0001706,94148.0,94147.0,0.46264656]
[1736489238819,0.0001706,94148.0,94147.0,0.46064656]
[1736489239043,0.0001706,94148.0,94147.0,0.26064656]
[1736489239248,0.0001706,94148.0,94147.0,0.17034656]
[1736489240070,0.0001706,94148.0,94147.0,0.18634656]
[1736489240267,0.0001706,94148.0,94147.0,0.19334656]
[1736489240523,0.0001706,94148.0,94147.0,0.18434656]
[1736489240925,0.0001706,94148.0,94147.0,0.19334656]
[1736489241127,0.0001706,94148.0,94147.0,0.18434656]
[1736489241472,0.0001706,94148.0,94147.0,0.19334656]
[1736489241876,0.0001706,94148.0,94147.0,0.14644656]
[1736489242085,0.0001706,94148.0,94147.0,0.12344656]
[1736489242971,0.0001706,94148.0,94147.0,0.11644656]
[1736489243164,0.0001706,94148.0,94147.0,0.12144656]
[1736489243574,0.0001706,94148.0,94147.0,0.11244656]
[1736489243777,0.0001706,94148.0,94147.0,0.10744656]
[1736489244027,0.0001706,94148.0,94147.0,0.11644656]
[1736489244243,0.0001706,94148.0,94147.0,0.10744656]
[1736489244645,0.0001706,94148.0,94147.0,0.11644656]
[1736489245255,0.0001706,94148.0,94147.0,0.12044656]
[1736489249369,0.0001706,94148.0,94147.0,0.276241]